{"text_format":"1","workbook":"xlsx","n_sheets":1,"sheets":["III"],"not_rendered":{"charts":0,"images":1,"macros":0,"external_links":0,"defined_names":1,"comments":0,"pivot_tables":0},"unopened":[],"bounds":{"document_bytes":16777216,"sheet_cells":100000,"rows_first":2000,"rows_last":500,"rows_between":2000,"halvings":0,"cell_chars":16384,"cell_head_chars":4096},"cells_cut":0,"cells_raw":0,"read":"whole","date_system":"1900"}

{"sheet":"III","index":0,"n_rows":40,"n_cols":9,"rows_kept":40,"cut":false,"hidden":false,"merged":[[0,1,0,8],[1,1,1,8]]}
[null,"Entry Test  Result - 18th Feb 2018"]
[null,"Class - III"]
[null,"S.No","Name","Fathers Name","English","Urdu","Maths","Total","Remarks"]
[null,1,"Khushbakht","Johar Zaman",39,23,22.5,{"$f":"SUM(E4:G4)","v":84.5},"Congratulations"]
[null,2,"Somayyan","Abdul Naseer",36,22,25.5,{"$f":"SUM(E5:G5)","v":83.5},"Congratulations"]
[null,3,"Mishal Khan","Jehan Zeb",37.5,14,28.5,80,"Congratulations"]
[null,4,"Momina Imran","Imran Reayat",37.5,13,28,78.5,"Congratulations"]
[null,5,"Ayesha Aurangzeb","Aurangzeb",37.5,19,20.5,77,"Congratulations"]
[null,6,"Aleeza Manzoor","Dr. Manzoor",38,15,21,74,"Congratulations"]
[null,7,"Mahnoor Alam Afridi","Alam Zeb Afridi",35.5,15,22,72.5,"Congratulations"]
[null,8,"Saba Gul","Shah Nawaz Afridi",33,20,19.5,72.5,"Congratulations"]
[null,9,"Nida Maqbool","Maqbool Ilahi",37.5,17,18,72.5,"Congratulations"]
[null,10,"Hoorain Zahid","Zahid Ullah",36,18,17.5,71.5,"Congratulations"]
[null,11,"Spogmay Ihsan","Ihsan ul Haq",28.5,19,24.5,72,"Congratulations"]
[null,12,"Gulalai","Sharifullah",37,16,16.5,69.5,"Congratulations"]
[null,13,"Warisha Zeeshan","Zeeshan Aleem",26.5,24,19,69.5,"Congratulations"]
[null,14,"Arooba","Muhammad Abbas Khan",32.5,15,22.5,70,"Congratulations"]
[null,15,"Omaima Fazal","Fazal Bari",36,11,21,68,"Urdu (udertaking)"]
[null,16,"Afsheen Aziz Eman","Abdul Qudoos",29,17,19,65,"Congratulations"]
[null,17,"Khkullah Iqbal","Riaz Iqbal",28.5,17,19,64.5,"Congratulations"]
[null,18,"Eshaal Siddiqui","Fawad Siddique",32,9,23,64,"Urdu (udertaking)"]
[null,19,"Warisha Saeed","Saeed Ullah",30.5,15,17,62.5,"Congratulations"]
[null,20,"Ayesha Imran","Imran Khan",30,19,13,62,"Congratulations"]
[null,21,"Zikra","Zahoor Mahmood",30.5,15,15.5,61,"Congratulations"]
[null,22,"Hafsa Muhammad Shad","Dr. Anwar Ali Shad",33,13,13,59,"Better stay in old school"]
[null,23,"Kalsoom Rehman","Abdur Rehman",23.5,14,17,54.5,"Better stay in old school"]
[null,24,"Bareera","Muhammad Irshad",28.5,14,11,53.5,"Better stay in old school"]
[null,25,"Eshal Malik","Faisal Malik",28.5,10,14,52.5,"Better stay in old school"]
[null,26,"Afreen Ayub","Kamran Ayub",34,13,6,53,"Better stay in old school"]
[null,27,"Malaika Iqbal","Muhammad Iqbal",27.5,12,9.5,49,"Better stay in old school"]
[null,28,"Laleen Kifayat","Kifayat Ullah",35,4,9,48,"Better stay in old school"]
[null,29,"Samaria Armaghan","Muhammad Saeed",32,11,5,48,"Better stay in old school"]
[null,30,"Maheen Waqar","Mian Muhammad Waqar",19.5,9,19,47.5,"Better stay in old school"]
[null,31,"Maryam Ayaz","Ayaz Anwar Khalid",25.5,9,6.5,41,"Better stay in old school"]
[null,32,"Sawera","Dr. Waliullah",26,8,10,44,"Better stay in old school"]
[null,33,"Eshal Naeem","Naeem Jan",25.5,9.5,7,42,"Better stay in old school"]
[null,34,"Muskan","Malang Shah Afridi",10.5,7,15,32.5,"Better stay in old school"]
[null,35,"Alizay Khan","Fayaz Khan",23.5,4,6.5,34,"Better stay in old school"]
[null,36,"Hajra Gul","Shahzad",13,5,8,26,"Better stay in old school"]
[null,37,"Shumaila Hayat","Khizar Hayat",0,7,9,16,"Better stay in old school"]